Cogmind - Beta 13 @@@ ROGUE MODE // 2024.04.17 @ 23:12:06 Player: opdo Result: Self-destructed Performance ------------- Evolutions (2) 1000 Regions Visited (5) 1000 Robots Destroyed (31) 155 Value Destroyed (672) 672 Prototype IDs (23) 460 Alien Tech Used (0) 0 Bonus (71) 71 TOTAL SCORE: 3358 Bonus ------- Follower Combat Kills 21 Aligned with FarCom 300 Friendly Fire -250 Cogmind --------- Core Integrity 521/550 Matter 300/300 Energy 158/250 System Corruption 0% Temperature Cool (0) Movement Rolling (95) Location -8/Materials Parts ------- > --- POWER (1) -------- Ion Engine > --- PROPULSION (4) --- Wheel Compact Wheel Compact Wheel Compact Wheel > --- UTILITY (4) ------ Cooling System Small Storage Unit Seismic Detector Improved Weapon Shielding > --- WEAPON (2) ------- YOLO Cannon > --- INVENTORY (8) ---- Light Ion Engine Light Deuterium Engine Combat Airjet Combat Airjet Launcher Guidance Computer Assault Rifle Light Assault Rifle Peak State ------------ > --- POWER ------------ Ion Engine > --- PROPULSION ------- Wheel Compact Wheel Combat Airjet Combat Airjet > --- UTILITY ---------- Cooling System Small Storage Unit Seismic Detector Improved Weapon Shielding > --- WEAPON ----------- YOLO Cannon > --- INVENTORY -------- Light Ion Engine Launcher Guidance Computer Assault Rifle Light Assault Rifle [Rating: 40] Favorites ----------- Power Ion Engine Engine Ion Engine Propulsion Combat Airjet Leg Aluminum Leg Wheel Compact Wheel Hover Unit Combat Airjet Flight Unit Flight Unit Utility Small Storage Unit Device Seismic Detector Storage Small Storage Unit Processor Advanced Visual Processing Unit Protection Improved Weapon Shielding Weapon YOLO Cannon Energy Gun Medium Laser Energy Cannon YOLO Cannon Ballistic Gun Minigun Launcher Rocket Launcher Special Weapon Mining Laser Build | -11 -10 -10 -10 -9 -8 ------- Run | Yrd Mat Min Exi Min Mat Slots Evolved 4 | . . . . . 4 Power . | . . . . . . Propulsion 2 | . . . . . 2 Utility 2 | . . . . . 2 Weapon . | . . . . . . Parts Attached 31 | 7 3 14 1 . 6 Power 3 | 1 1 1 . . . Engine 3 | 1 1 1 . . . Core . | . . . . . . Reactor . | . . . . . . Propulsion 11 | 2 . 5 . . 4 Treads . | . . . . . . Leg 2 | 2 . . . . . Wheel 4 | . . . . . 4 Hover 3 | . . 3 . . . Flight 2 | . . 2 . . . Utility 7 | 2 . 3 . . 2 Device 3 | 1 . 1 . . 1 Storage 1 | 1 . . . . . Processor 2 | . . 2 . . . Hackware . | . . . . . . Protection 1 | . . . . . 1 Artifact . | . . . . . . Weapon 10 | 2 2 5 1 . . Energy Gun 2 | 2 . . . . . Energy Cannon 1 | . . . 1 . . Ballistic Gun 5 | . 2 3 . . . Ballistic Cannon . | . . . . . . Launcher 1 | . . 1 . . . Special Weapon 1 | . . 1 . . . Impact Weapon . | . . . . . . Slashing Weapon . | . . . . . . Piercing Weapon . | . . . . . . Special Melee Weapon . | . . . . . . Unidentified Prototypes . | . . . . . . Parts Lost 1 | . 1 . . . . Power . | . . . . . . Propulsion . | . . . . . . Utility . | . . . . . . Weapon 1 | . 1 . . . . Highest Loss Streak 1 | . 1 . . . . To Critical Strikes . | . . . . . . Average Slot Usage (%) 91 | . 99 90 92 85 90 Engine 13 | . 14 14 14 14 9 Leg 6 | . 28 4 . . . Wheel 4 | . . . . . 35 Hover 16 | . . 20 28 28 . Flight 1 | . . 3 . . . Device 10 | . 14 4 14 14 18 Storage 13 | . 14 14 14 14 9 Processor 3 | . . 8 . . . Protection 1 | . . . . . 9 Energy Gun 3 | . 22 . . . . Energy Cannon 3 | . . . 7 14 9 Ballistic Gun 8 | . 5 14 6 . . Special Weapon 2 | . . 4 6 . . Naked Turns . | . . . . . . Heaviest Build 33 | 12 12 15 29 29 33 Greatest Support 58 | 20 20 24 24 24 58 Greatest Overweight (x) 2 | 1 . 2 1 1 1 Average Overweight (x) . | . . . . 1 . Largest Inventory Capacity 8 | 8 8 8 8 8 8 Average Capacity 7 | 6 8 8 8 8 8 Most Carried 8 | 6 8 8 8 8 7 Average Carried 7 | 3 6 7 8 8 6 Final Capacity 8 | 8 8 8 8 8 8 Final Carried 8 | 5 8 8 8 8 7 Class Distribution -------------------- 84% | Mutant 15% | Scavenger-Mutant Dominant Class ---------------- Mutant | -10/Materials Mutant | -10/Mines Mutant | -10/Exiles Mutant | -9/Mines Mutant | -8/Materials Resources | -11 -10 -10 -10 -9 -8 ----------- Run | Yrd Mat Min Exi Min Mat Matter Collected 581 | 143 147 221 . 10 60 Remotely . | . . . . . . Salvage Created 750 | 12 271 160 . . 307 Parts 65 | 4 26 23 . . 12 Haulers Intercepted . | . . . . . . Recyclers Shooed . | . . . . . . Parts Field Recycled . | . . . . . . Retrieved Matter . | . . . . . . Parts Self-Destructed . | . . . . . . Prevented . | . . . . . . Kills | -11 -10 -10 -10 -9 -8 ------- Run | Yrd Mat Min Exi Min Mat Combat Hostiles Destroyed 23 | . 10 8 . . 5 Guns 16 | . 10 6 . . . Cannons 4 | . . . . . 4 AOE 3 | . . 2 . . 1 Classes Destroyed 6 | 1 3 1 . . 1 Worker 2 | . . 2 . . . Tunneler 3 | 1 . 2 . . . Recycler 1 | . . . . . 1 Watcher 1 | . 1 . . . . Swarmer 14 | . 6 8 . . . Grunt 9 | . 4 . . . 5 Thug 1 | . . . . . 1 Best Kill Streak 5 | 1 5 3 . . 3 Combat Bots Only 5 | . 5 3 . . 3 Max Kills in Single Turn 2 | 1 2 2 . . 2 Gunslinging 1 | . 1 . . . . Exploded 2 | . . 2 . . 1 Melee . | . . . . . . Uniques/NPCs Destroyed . | . . . . . . Combat | -11 -10 -10 -10 -9 -8 -------- Run | Yrd Mat Min Exi Min Mat Hostile Shots Fired 87 | . 49 24 . . 14 Missed 22 | . 11 7 . . 4 Damage Taken 758 | . 396 171 . . 191 Core 135 | . 58 48 . . 29 Absorbed by Shields . | . . . . . . Redirected to Shielding 54 | . . . . . 54 Core Remaining (%) 78 | 100 . . . 57 . Volleys Fired 57 | 2 28 19 . . 8 Largest 2 | 2 2 2 . . 1 Hottest 125 | 90 90 125 . . 100 Shots Fired 98 | 4 54 32 . . 8 Gun 85 | 4 54 27 . . . Cannon 8 | . . . . . 8 Launcher 1 | . . 1 . . . Special 4 | . . 4 . . . Kinetic 27 | . . 27 . . . Thermal 70 | 4 54 4 . . 8 Explosive 1 | . . 1 . . . Electromagnetic . | . . . . . . Robot Hit Streak 9 | 1 6 9 . . 5 Robot Miss Streak 3 | 1 3 3 . . 2 Penetration Max . | . . . . . . Secondary Targets 2 | . 2 . . . . Max Gunslinging Chain 1 | . 1 . . . . Shots Hit Robots 56 | 2 33 16 . . 5 Core Hits 36 | 1 17 12 . . 6 Critical Kills 1 | . . . . . 1 Critical Parts Destroyed . | . . . . . . Critical Strikes 2 | . 1 . . . 1 Burn 1 | . 1 . . . . Meltdown 1 | . . . . . 1 Melee Attacks . | . . . . . . Impact . | . . . . . . Slashing . | . . . . . . Piercing . | . . . . . . Sneak Attacks . | . . . . . . Combat Hostiles . | . . . . . . Follow-up Attacks . | . . . . . . Damage Inflicted 1794 | 20 393 348 . . 1033 Guns 584 | 20 393 171 . . . Cannons 602 | . . . . . 602 Explosions 584 | . . 153 . . 431 Melee . | . . . . . . Ramming . | . . . . . . Kinetic 171 | . . 171 . . . Thermal 1470 | 20 393 24 . . 1033 Explosive 153 | . . 153 . . . Electromagnetic . | . . . . . . Impact . | . . . . . . Slashing . | . . . . . . Piercing . | . . . . . . Highest Corruption . | . . . . . . Average Corruption . | . . . . . . Corruption Purged . | . . . . . . Corruption Blocked . | . . . . . . Overload Shots . | . . . . . . Overflow Damage 162 | . . 52 . . 110 Projectiles 110 | . . . . . 110 Explosions 52 | . . 52 . . . Melee . | . . . . . . Knockbacks . | . . . . . . Impact . | . . . . . . Kinetic . | . . . . . . Secondary . | . . . . . . Self-Inflicted Damage 89 | . . 37 . . 52 Shots 2 | . . 1 . . 1 Rammed . | . . . . . . Targets Rammed . | . . . . . . Kicked . | . . . . . . Crushed . | . . . . . . Highest Temperature 288 | 60 288 72 . . 6 Average Temperature 95 | 31 114 31 . . 5 Received Heat Transfer 243 | . 153 . . . 90 Effects 1 | . 1 . . . . Energy Bleed 1 | . 1 . . . . Siege Activations . | . . . . . . Robots Corrupted . | . . . . . . Combat Hostiles . | . . . . . . Parts Fried . | . . . . . . Impact Corruptions . | . . . . . . Robots Melted 1 | . . . . . 1 Combat Hostiles . | . . . . . . Parts Melted 3 | . 1 . . . 2 Heat Transferred 2256 | 50 1116 50 . . 1040 Parts Sabotaged . | . . . . . . Parts Stolen . | . . . . . . Parts Stripped . | . . . . . . Power Chain Reactions . | . . . . . . Alert | -11 -10 -10 -10 -9 -8 ------- Run | Yrd Mat Min Exi Min Mat Peak Influence 362 | 5 285 282 . . 362 Initial 60 | . 3 60 . . . Average 138 | . 135 161 . . 222 Maximum Alert Level 1 | . 1 1 . . 1 Low Security (%) 82 | 100 77 97 . 100 17 Level 1 17 | . 22 2 . . 82 Level 2 . | . . . . . . Level 3 . | . . . . . . Level 4 . | . . . . . . Level 5 . | . . . . . . High Security . | . . . . . . Max Security . | . . . . . . Squads Dispatched 5 | . 1 1 . . 3 Investigation 3 | . 1 1 . . 1 Extermination . | . . . . . . Reinforcement 1 | . . . . . 1 Assault 1 | . . . . . 1 Garrison . | . . . . . . Intercept . | . . . . . . Searches Triggered . | . . . . . . Construction Impeded . | . . . . . . Haulers Reinforced . | . . . . . . Active Scanning Responses . | . . . . . . Cargo Convoy Interrupts . | . . . . . . Stealth | -11 -10 -10 -10 -9 -8 --------- Run | Yrd Mat Min Exi Min Mat Distress Signals 2 | . 1 . . . 1 Communications Jammed . | . . . . . . Distress Signals . | . . . . . . Times Spotted 36 | . 14 12 . . 10 Peak Tracking Total 4 | . 4 3 . . 3 Tactical Retreats 3 | . 1 1 . . 1 Traps | -11 -10 -10 -10 -9 -8 ------- Run | Yrd Mat Min Exi Min Mat Traps Triggered 1 | . 1 . . . . Indirectly . | . . . . . . Trap Hack Attempts . | . . . . . . Triggered . | . . . . . . Disarmed . | . . . . . . Reprogrammed . | . . . . . . Reused . | . . . . . . Traps Extracted . | . . . . . . Installed . | . . . . . . Triggered . | . . . . . . Machines | -11 -10 -10 -10 -9 -8 ---------- Run | Yrd Mat Min Exi Min Mat Machines Disabled 1 | . . . . . 1 Max in Single Turn 1 | . . . . . 1 Garrison Access 1 | . . . . . 1 Machines Repaired . | . . . . . . Machines Dismantled . | . . . . . . Machines Sabotaged . | . . . . . . Overloaded Fab Kills . | . . . . . . Hacking | -11 -10 -10 -10 -9 -8 --------- Run | Yrd Mat Min Exi Min Mat Machines Accessed 8 | . 2 1 3 . 2 Terminals 4 | . 2 . . . 2 Fabricators . | . . . . . . Repair Stations . | . . . . . . Recycling Units . | . . . . . . Scanalyzers . | . . . . . . Garrison Access . | . . . . . . Total Hacks 20 | . 5 1 4 . 10 Successful 10 | . 3 1 4 . 2 Failed 10 | . 2 . . . 8 Catastrophic . | . . . . . . Database Lockouts . | . . . . . . Manual 7 | . 2 . 1 . 4 Terminals 15 | . 5 . . . 10 Fabricators . | . . . . . . Repair Stations . | . . . . . . Recycling Units . | . . . . . . Scanalyzers . | . . . . . . Garrison Access . | . . . . . . Terminal Hacks 9 | . 3 1 4 . 1 Record 3 | . . . 3 . . Open Door 1 | . . 1 . . . Unreport Threat 1 | . 1 . . . . Locate Traps 2 | . 1 . . . 1 Zone Layout 1 | . 1 . . . . Derelict Proto ID Bank 1 | . . . 1 . . Fabricator Hacks . | . . . . . . Repair Station Hacks . | . . . . . . Recycling Unit Hacks . | . . . . . . Scanalyzer . | . . . . . . Garrison Access Hacks . | . . . . . . Unauthorized Hacks 1 | . . . . . 1 Terminals 1 | . . . . . 1 Botnet 1 | . . . . . 1 Fabricators . | . . . . . . Repair Stations . | . . . . . . Recycling Units . | . . . . . . Scanalyzers . | . . . . . . Garrison Access . | . . . . . . Data Cores Recovered . | . . . . . . Used . | . . . . . . Hacking Detections 4 | . 2 . . . 2 Full Trace Events 1 | . . . . . 1 Feedback Events . | . . . . . . Feedback Blocked . | . . . . . . Robot Schematics Acquired . | . . . . . . Robots Built . | . . . . . . Authchips . | . . . . . . Time . | . . . . . . Total Robot Build Rating . | . . . . . . Part Schematics Acquired . | . . . . . . Parts Built . | . . . . . . Authchips . | . . . . . . Time . | . . . . . . Total Part Build Rating . | . . . . . . Parts Repaired . | . . . . . . Time . | . . . . . . Parts Recycled . | . . . . . . Recycled Matter . | . . . . . . Retrieved Matter . | . . . . . . Retrieved Components . | . . . . . . Parts Scanalyzed . | . . . . . . Part Schematics Acquired . | . . . . . . Parts Damaged . | . . . . . . Bothacking | -11 -10 -10 -10 -9 -8 ------------ Run | Yrd Mat Min Exi Min Mat Used RIF Installer . | . . . . . . Robots Hacked . | . . . . . . Non-combat . | . . . . . . Combat . | . . . . . . Robot Hacks Applied . | . . . . . . Relay Couplers Released 2 | . . . . . 2 Machine Destruction 2 | . . . . . 2 Fabnet Peak Effective % . | . . . . . . Robots Rewired . | . . . . . . Allies Hacked . | . . . . . . Hacks Repelled . | . . . . . . Allies | -11 -10 -10 -10 -9 -8 -------- Run | Yrd Mat Min Exi Min Mat Total Allies 3 | . . 1 . 2 . Largest Group 2 | . . 1 . 2 2 Highest-Rated Group 45 | . . 31 . 45 45 Highest-Rated Ally 31 | . . 31 . 31 31 Total Orders . | . . . . . . Ally Attacks 11 | . . 10 . . 1 Total Damage 106 | . . 106 . . . Kills 3 | . . 3 . . . Allies Corrupted . | . . . . . . Allies Melted 1 | . . . . . 1 Intel | -11 -10 -10 -10 -9 -8 ------- Run | Yrd Mat Min Exi Min Mat Robot Analysis Total . | . . . . . . Derelict Logs Recovered 3 | . . 2 . 1 . Drone Launches . | . . . . . . Drone Recoveries . | . . . . . . Exploration | -11 -10 -10 -10 -9 -8 ------------- Run | Yrd Mat Min Exi Min Mat Turns Passed 2008 | 61 357 833 296 222 239 Spaces Moved 1762 | 43 208 898 290 151 172 Core 17 | 17 . . . . . Treads . | . . . . . . Legs 297 | 26 208 63 . . . Wheels 172 | . . . . . 172 Hover 1127 | . . 686 290 151 . Flight 149 | . . 149 . . . Fastest Speed 37 | 50 120 37 77 147 93 Average Speed 95 | 93 120 78 101 147 95 Slowest Speed 210 | 120 120 210 147 147 105 Overloaded Moves . | . . . . . . Propulsion Burnouts . | . . . . . . Robots Hopped 3 | . . 3 . . . Cave-ins Triggered . | . . . . . . Exploration Rate (%) 45 | 3 54 99 62 33 19 Regions Visited 5 Branch Regions 3 Pre-discovered Areas 3 | . . 2 . 1 . Known Exits Taken . | . . . . . . Unknown Exits Taken 5 | 1 1 1 1 1 . Scrap Searched 2 | . . 1 . 1 . Spaces Dug . | . . . . . . Terrain Destroyed 86 | . . 19 . . 67 Melee . | . . . . . . Projectile 3 | . . 2 . . 1 AOE 83 | . . 17 . . 66 Terrain Rammed . | . . . . . . Walls Destroyed . | . . . . . . Machines Disabled . | . . . . . . Actions | -11 -10 -10 -10 -9 -8 --------- Run | Yrd Mat Min Exi Min Mat Total 1968 | 57 261 984 292 152 222 Wait 89 | . 18 38 . . 33 Move 1752 | 42 207 892 289 150 172 Hop 2 | . . 2 . . . Pick Up 17 | 6 4 5 . 1 1 Fast Attach 15 | 6 . 6 1 . 2 Attach 10 | 1 1 4 . . 4 Detach 3 | . . 1 . . 2 Swap 6 | . 2 4 . . . Drop 17 | . 1 13 2 1 . Fire 57 | 2 28 19 . . 8 Melee . | . . . . . . Ram . | . . . . . . Kick . | . . . . . . Crush . | . . . . . . Escape Stasis . | . . . . . . Rewire . | . . . . . . Trap . | . . . . . . Miscellaneous . | . . . . . . Route ------- -11/Scrapyard -10/Materials (discovered 3 exits: [*Mat x2] / *Min) -10/Mines (discovered 3 exits: [*Mat x2] / *Exi) -10/Exiles -9/Mines -8/Materials History --------- Turn | Location | Event 13 | -11/Scrapyard | Discovered new exit (range 16) 62 | -11/Scrapyard | Entered Materials 309 | -10/Materials | Build established: Mutant 365 | -10/Materials | Discovered new exit (range 6) 401 | -10/Materials | Discovered new exit (range 18) 401 | -10/Materials | Discovered new exit (range 21) 419 | -10/Materials | Entered Mines 426 | -10/Mines | Received a Rocket Launcher from a helpful Derelict 473 | -10/Mines | Learned location of Zion (-6) 558 | -10/Mines | Assembled infested the area 611 | -10/Mines | Discovered new exit (range 4) 705 | -10/Mines | Received a Mining Laser from a helpful Derelict 774 | -10/Mines | Discovered new exit (range 7) 794 | -10/Mines | Discovered new exit (range 6) 885 | -10/Mines | Met a Derelict shopkeep closing up shop 1252 | -10/Mines | Entered Exiles 1270 | -10/Exiles | Met 8R-AWN 1284 | -10/Exiles | Met EX-HEX 1308 | -10/Exiles | Met EX-BIN 1317 | -10/Exiles | Aligned with FarCom system 1318 | -10/Exiles | Given EX-Vault access code 1336 | -10/Exiles | Opened EX-Vault 1369 | -10/Exiles | Warned to stay clear of 0b10 Research branches 1398 | -10/Exiles | Found YOLO Cannon 1472 | -10/Exiles | Met EX-DEC 1529 | -10/Exiles | Discovered new exit (range 12) 1548 | -10/Exiles | Left Exiles lab with YOLO Cannon 1548 | -10/Exiles | Entered Mines 1572 | -9/Mines | Met a Derelict bent on vengeance 1751 | -9/Mines | Discovered new exit (range 13) 1770 | -9/Mines | Entered Materials 1770 | -8/Materials | Accompanied by 2 allies 1770 | -8/Materials | Evolved 4 slots: Propulsion x2, Utility x2 1775 | -8/Materials | Led the pair of lost Derelicts to an unsafe place 2009 | -8/Materials | Self-destructed Last Messages --------------- 01966_ K-01 Serf collects debris. 01967_ U-05 Engineer lays Concrete. 01968_ U-05 Engineer builds a Wall. 01969_ U-05 Engineer lays Concrete. 01971_ U-05 Engineer builds a Wall. 01975_ U-05 Engineer lays Concrete. 01975_ U-05 Engineer builds a Wall. 01975_ U-05 Engineer lays Concrete. 01976_ U-05 Engineer builds a Wall. 01977_ U-05 Engineer lays Concrete. 01978_ U-05 Engineer builds a Wall. 01989_ Connecting with Terminal... 01989_ ALERT: Suspicious activity at Terminal M009. Dispatching Investigation squad. 01992_ K-01 Serf collects debris. 02000_ W-25 Informer sends out distress signal. 02001_ Destroyed Com. Wheel. 02001_ Lgt. Ion Engine melted. 02001_ R-06 Scavenger destroyed. 02005_ Slug penetrates Wall. Map ----- +----------------------------------------------------+ | ???????????????????????????????????????????? | | ???????????????????????????????????????????? | | ???????????????????????????????????????????? | | ???????????????????????????????????????????? | | ???????????????????????????????????????????? | | ???????????????????????????????????????????? | | ???????????????????????????????????????????? | | ???????????????????????????????????????????? | | ???????????????????????????????????????????? | | ???????????????????????????????????????????? | | ????????????????????????? ???????????????? | | ????????????????????????? ##?????????????? | | ????????????????????????# ;##????????????? | | ????????????????????????; ; ##???????????? | | ????????????????????????; ; ????????????? | | ????????????????????????; ????????????? | | ????????????????????????; k;;?????????????? | | ???????????????????????? ?????????????? | | ???????????????g???????? ??????????????? | | ????????????????????????g h??????????????? | | ????????????????????????# #??????????????? | | ????????????????????????# #??????????????? | | ????????????????????????# #??????????????? | | ????????????????????????+ #??????????????? | | ????????????????????????#w #??????????????? | | ????????????????????????#@ #??????????????? | | ????????????????????????# #??????????????? | | ????????????????????????# ; ?????????????? | | ????????????????????????; ; ?????Y?????? | | ????????????????????????;%! ; ! "?????????? | | ????????????????????????; !! R"???????? | | ????????????????????????; ; """???????? | | ???????????????????????#; r; ???????? | | ???????????????????????## ;#######???????? | | ????????????????######## #?????????????? | | ????????????????# #?????????????? | | ????????????????# T #?????????????? | | ????????????????# #?????????????? | | ????????????????# #### #?????????????? | | ????????????? ????## ##?????????????? | | ??????????? ??????# #??????????????? | | ???????????? ???????# #??????????????? | | ?????????????###????????# #??????????????? | | ????????????????????????# #??????????????? | | ????????????????????????# #??????????????? | | ???????????????????????## ##?????????????? | | ???????????????????????# #?????????????? | | ???????????????????????# #?????????????? | | ???????????????????????# #?????????????? | | ????????????????? ???# #?????????????? | +----------------------------------------------------+ Best States ------------- Heat Dissipation 53 Energy Generation 10 Energy Capacity 250 Matter Stores 300 Matter Capacity 300 Sight Range 20 Terrain Scan Range 16 Terrain Scan Density 10 Weapon Shielding 66 Evasion (%) 62 Item Schematics ----------------- None Robot Schematics ------------------ None Fabricated ------------ Nothing Alien Tech Used ----------------- None Achievements -------------- None Challenges ------------ None Game ------ Seed SpectralPhysicsAutohacker Manual? 0 Play Time 00:17:24 Cumulative 40.6 hours Start 2024.04.17 @ 22:56:22 End 2024.04.17 @ 23:12:06 Sessions 1 Manual Loads 0 Difficulty Rogue Special Mode None Game No. 110 Rogue 108 Adventurer 2 Explorer 0 Win Type - Total 0 Types 0/0/0/0/0/0/0/0/0 Lore% 32 Gallery% 45 Achievement% 33 Wizard Run 0 Options --------- Layout 2 ASCII 0 Keyboard 0 Movement Arrows Keybinds 0 Fullscreen 2 Font 24/Smallcaps Map View 50x44 Zoom Use 0% Tactical HUD 1 Map Filters NONE Filters NONE Steam 1 RUN: 97495c5c-580c-4db1-89de-6562d23c113c